bitfinex-derivatives/quotes_SOLF0:USTF0_20250105
["timestamp","ask_amount","ask_price","bid_price","bid_amount"]
[1736067189627,2.3248,215.12,215.1,49.65685665]
[1736067192022,2.3247,215.13,215.1,49.65685665]
[1736067195724,2.3247,215.13,215.1,49.62345236]
[1736067198830,2.3246,215.14,215.1,49.62345236]
[1736067199633,2.58,215.19,215.1,49.62345236]
[1736067199828,7.2919752,215.19,215.12,7.2919752]
[1736067200130,3.35849758,215.21,215.14,7.2919752]
[1736067201220,2.3242,215.19,215.14,7.2919752]
[1736067203528,2.3242,215.18,215.13,2.3246]
[1736067203727,2.3242,215.18,215.14,7.2919752]
[1736067210340,3.35849758,215.21,215.12,3.9657]
[1736067210341,3.35849758,215.21,215.16,7.2919752]
[1736067210640,3.35849758,215.21,215.18,7.2919752]
[1736067212147,352.69209848,215.34,215.2,7.2919752]
[1736067212348,7.2919752,215.27,215.2,7.2919752]
[1736067212849,2.3235,215.24,215.2,7.2919752]
[1736067217149,2.3234,215.25,215.2,7.2919752]
[1736067217347,7.2919752,215.28,215.2,7.2919752]
[1736067218446,2.3233,215.26,215.2,7.2919752]
[1736067218751,7.2919752,215.28,215.2,7.2919752]
[1736067219051,2.3235,215.24,215.2,7.2919752]
[1736067221651,2.3238,215.22,215.18,7.2919752]
[1736067237367,2.3236,215.23,215.18,9.6160752]
[1736067238068,7.2919752,215.26,215.18,7.2919752]
[1736067238267,2.3235,215.24,215.19,2.324]
[1736067240264,7.2919752,215.26,215.19,2.324]
[1736067240466,2.3237,215.23,215.18,7.2919752]
[1736067240759,2.3237,215.23,215.18,2.3242]
[1736067246973,2.3238,215.22,215.17,2.3243]
[1736067248372,2.3242,215.18,215.15,6.87137056]
[1736067248575,7.2919752,215.18,215.15,6.87137056]
[1736067248775,7.2919752,215.16,215.15,6.87137056]
[1736067250576,9.6163752,215.16,215.15,6.87137056]
[1736067254577,2.3244,215.16,215.15,6.87137056]
[1736067255983,2.3242,215.18,215.15,6.87137056]
[1736067256179,7.2919752,215.21,215.15,6.87137056]
[1736067256682,2.3242,215.18,215.15,6.87137056]
[1736067263686,2.3243,215.17,215.15,6.87137056]
[1736067273387,2.3244,215.16,215.15,6.87137056]
[1736067274294,2.3245,215.15,215.11,8.6831752]
[1736067275299,7.2919752,215.17,215.11,8.6831752]
[1736067275499,2.3246,215.14,215.11,8.6831752]
[1736067280402,2.3246,215.14,215.11,7.2919752]
[1736067281299,7.2919752,215.17,215.1,43.78967716]
[1736067281500,2.3247,215.13,215.1,43.78967716]
[1736067283404,2.3247,215.13,215.1,51.08165236]
[1736067287906,2.3247,215.13,215.1,8.7501752]
[1736067290008,2.3246,215.14,215.1,11.0751752]
[1736067296014,2.3244,215.17,215.12,9.6167752]
[1736067300625,2.58,215.2,215.12,9.6167752]
[1736067300815,2.3244,215.16,215.12,7.2919752]
[1736067301315,2.3244,215.16,215.11,2.3249]
[1736067302325,2.3245,215.15,215.11,2.3249]
[1736067302526,2.3245,215.15,215.1,11.0751752]
[1736067303728,2.3245,215.15,215.1,3.7832]
[1736067304432,2.3245,215.15,215.11,7.2919752]
[1736067304924,2.3245,215.15,215.1,3.7832]
[1736067305123,2.3245,215.15,215.11,7.2919752]
[1736067306128,2.3245,215.15,215.11,9.6168752]
[1736067307828,2.3245,215.15,215.1,1.4582]
[1736067308028,2.3245,215.15,215.11,7.2919752]
[1736067308225,2.3245,215.15,215.1,3.7832]
[1736067311529,2.3245,215.15,215.11,7.2919752]
[1736067315029,2.3245,215.15,215.1,3.7832]
[1736067315229,2.3245,215.15,215.1,11.0751752]
[1736067316734,7.2919752,215.19,215.1,8.7501752]
[1736067316929,7.2919752,215.17,215.08,15.08017116]
[1736067317734,10.77951794,215.17,215.08,15.08017116]
[1736067318038,10.77951794,215.17,215.08,17.40537116]
[1736067319435,2.3248,215.13,215.08,17.40537116]
[1736067320735,2.3248,215.12,215.08,17.40537116]
[1736067323435,2.3248,215.12,215.08,15.08017116]
[1736067323636,2.3247,215.13,215.1,7.2919752]
[1736067324436,7.2919752,215.17,215.1,7.2919752]
[1736067324641,2.3248,215.12,215.1,7.2919752]
[1736067328350,2.3244,215.16,215.1,7.2919752]
[1736067328544,77.1530714,215.19,215.15,7.2919752]
[1736067329044,77.1530714,215.19,215.15,9.6164752]
[1736067335048,79.4771714,215.19,215.15,9.6164752]
[1736067336845,79.4771714,215.19,215.15,7.2919752]
[1736067338354,79.4771714,215.19,215.14,2.3246]
[1736067338549,2.3242,215.18,215.14,2.3246]
[1736067340357,77.1530714,215.19,215.15,2.3245]
[1736067342558,79.4771714,215.19,215.15,2.3245]
[1736067343255,79.4771714,215.19,215.13,7.2919752]
[1736067343452,79.4771714,215.19,215.14,2.3246]
[1736067347953,3.79158074,215.22,215.17,7.2919752]
[1736067348147,9.8719752,215.28,215.21,7.2919752]
[1736067348552,2.3234,215.25,215.19,9.6159752]
[1736067351452,2.323,215.29,215.23,9.6155752]
[1736067351649,8.23530702,215.31,215.25,7.2919752]
[1736067351854,3.48610561,215.31,215.25,7.2919752]
[1736067352059,13.35808081,215.32,215.25,7.2919752]
[1736067353058,2.323,215.3,215.25,7.2919752]
[1736067353753,13.35808081,215.32,215.25,7.2919752]
[1736067353959,2.323,215.29,215.25,7.2919752]
[1736067355748,2.323,215.29,215.22,4.9036]
[1736067355949,2.323,215.29,215.24,7.2919752]
[1736067356958,2.3231,215.28,215.24,7.2919752]
[1736067359558,2.323,215.3,215.24,9.6154752]
[1736067360657,7.2919752,215.31,215.24,9.6154752]
[1736067360853,2.323,215.29,215.24,9.6154752]
[1736067361259,9.6148752,215.31,215.25,2.3234]
[1736067361460,7.2919752,215.31,215.25,2.3234]
[1736067362060,6.06601737,215.34,215.25,2.3234]
[1736067362264,2.3227,215.32,215.26,7.2919752]
[1736067362465,7.2919752,215.34,215.26,7.2919752]
[1736067362764,2.3229,215.3,215.25,2.3233]
[1736067362959,7.2919752,215.32,215.25,7.2919752]
[1736067363567,2.3227,215.32,215.25,7.2919752]
[1736067363767,7.2919752,215.33,215.25,7.2919752]
[1736067364369,7.2919752,215.33,215.25,9.6153752]
[1736067364667,7.2919752,215.33,215.27,7.2919752]
[1736067365067,2.323,215.3,215.27,7.2919752]
[1736067365268,7.2919752,215.33,215.25,7.2919752]
[1736067365473,7.2919752,215.31,215.25,7.2919752]
[1736067365768,2.323,215.3,215.25,7.2919752]
[1736067365968,7.2919752,215.31,215.25,7.2919752]
[1736067366367,123.13167406,215.35,215.25,7.2919752]
[1736067366573,7.2919752,215.32,215.25,7.2919752]
[1736067366863,2.3232,215.28,215.25,7.2919752]
[1736067370369,2.3232,215.27,215.25,7.2919752]
[1736067371577,7.2919752,215.3,215.22,64.54138217]
[1736067371772,7.2919752,215.28,215.22,61.96138217]
[1736067373378,2.3236,215.24,215.22,61.96138217]
[1736067373877,7.2919752,215.28,215.22,61.96138217]
[1736067374076,2.3236,215.23,215.22,61.96138217]
[1736067375478,2.3236,215.23,215.22,54.17849706]
[1736067375680,7.2919752,215.26,215.19,7.2919752]
[1736067375981,2.3238,215.22,215.19,7.2919752]
[1736067381781,2.3239,215.21,215.19,7.2919752]
[1736067385580,7.2919752,215.22,215.06,78.63415376]
[1736067385781,2.3244,215.16,215.12,2.3248]
[1736067385986,2.3244,215.16,215.14,7.2919752]
[1736067388190,2.3244,215.16,215.12,2.3248]
[1736067388393,2.3244,215.16,215.14,7.2919752]
[1736067391988,2.3244,215.16,215.12,2.3248]
[1736067392189,2.3243,215.17,215.13,7.2919752]
[1736067394294,2.3244,215.16,215.13,7.2919752]
[1736067394696,2.3244,215.16,215.11,2.3249]
[1736067394884,2.3246,215.14,215.09,1.4629]
[1736067395084,2.3246,215.14,215.11,7.2919752]
[1736067400687,2.3243,215.18,215.13,9.6166752]
[1736067400892,9.8719752,215.21,215.13,9.6166752]
[1736067401890,2.3243,215.17,215.13,7.2919752]
[1736067404994,7.2919752,215.19,215.13,7.2919752]
[1736067405195,2.3244,215.16,215.1,2.325]
[1736067405498,7.2919752,215.19,215.11,7.2919752]
[1736067405689,2.3247,215.14,215.11,7.2919752]
[1736067407904,2.3243,215.17,215.13,7.2919752]
[1736067408999,7.2919752,215.19,215.13,7.2919752]
[1736067409200,2.3244,215.16,215.13,7.2919752]
[1736067409396,2.3244,215.16,215.12,2.3248]
[1736067409600,2.58,215.21,215.15,7.2919752]
[1736067409797,2.3243,215.18,215.15,7.2919752]
[1736067411404,2.3243,215.18,215.13,7.2919752]
[1736067413003,7.2919752,215.2,215.12,2.3248]
[1736067413004,2.3243,215.17,215.12,2.3248]
[1736067413203,2.3243,215.17,215.13,7.2919752]
[1736067418108,2.3243,215.17,215.15,7.2919752]
[1736067418407,2.3243,215.17,215.13,7.2919752]
[1736067427112,2.3243,215.17,215.12,2.3248]
[1736067427405,2.3243,215.17,215.12,9.6167752]
[1736067432907,2.3243,215.17,215.12,2.3248]
[1736067433104,2.3245,215.15,215.1,9.6169752]
[1736067439314,2.3245,215.15,215.09,4.3473]
[1736067439315,2.3243,215.17,215.12,9.6166752]
[1736067439812,9.8719752,215.19,215.09,4.3473]
[1736067440121,9.8719752,215.19,215.11,9.6168752]
[1736067440515,13.35941608,215.19,215.11,9.6168752]
[1736067440715,9.8719752,215.19,215.11,9.6168752]
[1736067441519,13.35941351,215.19,215.11,9.6168752]
[1736067441716,9.8719752,215.19,215.11,9.6168752]
[1736067442618,2.3245,215.15,215.11,9.6168752]
[1736067447325,2.3243,215.17,215.13,2.3246]
[1736067447521,2.3243,215.17,215.13,9.6165752]
[1736067449719,2.3242,215.18,215.13,9.6165752]
[1736067455231,7.2919752,215.19,215.13,9.6165752]
[1736067455433,2.3243,215.17,215.13,9.6165752]
[1736067456628,2.3243,215.17,215.13,2.3246]
[1736067457733,2.3243,215.17,215.12,9.6167752]
[1736067458231,2.3243,215.17,215.12,2.3248]
[1736067458429,2.3243,215.17,215.12,9.6167752]
[1736067458644,2.3243,215.17,215.12,2.3248]
[1736067458835,2.3243,215.17,215.12,9.6167752]
[1736067467640,3.48732376,215.19,215.16,7.2919752]
[1736067467845,3.81753355,215.23,215.18,7.2919752]
[1736067468440,3.81753355,215.23,215.14,2.58]
[1736067468441,3.81753355,215.23,215.19,7.2919752]
[1736067469447,2.3239,215.21,215.19,7.2919752]
[1736067470951,2.3239,215.21,215.17,9.6161752]
[1736067479351,3.81753355,215.23,215.17,9.6161752]
[1736067479655,2.3238,215.22,215.17,9.6161752]
[1736067480254,2.3239,215.21,215.17,9.6161752]
[1736067486058,11.10950875,215.23,215.17,7.2919752]
[1736067486257,13.43320875,215.23,215.18,2.3242]
[1736067486456,11.10950875,215.23,215.18,2.3242]
[1736067487558,2.3237,215.22,215.18,2.3242]
[1736067489554,3.81753355,215.23,215.17,7.2919752]
[1736067489758,3.81753355,215.23,215.2,2.3239]
[1736067494054,3.81753355,215.23,215.19,9.6159752]
[1736067498563,6.14123355,215.23,215.19,9.6159752]
[1736067507168,2.3237,215.23,215.19,9.6159752]
[1736067515469,3.48637073,215.26,215.19,9.6159752]
[1736067515666,2.3236,215.24,215.19,9.6159752]
[1736067519679,3.48637073,215.26,215.19,9.6159752]
[1736067519873,2.324,215.2,215.16,1.4962]
[1736067524372,2.324,215.2,215.15,12.4102752]
[1736067525483,2.324,215.2,215.15,10.0858752]
[1736067525682,2.324,215.2,215.16,2.3244]
[1736067526678,2.324,215.2,215.17,7.2919752]
[1736067529475,2.324,215.2,215.16,2.3244]
[1736067529679,2.324,215.2,215.16,9.6163752]
[1736067535287,7.2919752,215.22,215.16,7.2919752]
[1736067537489,2.3241,215.19,215.16,7.2919752]
[1736067539199,2.3241,215.19,215.14,2.3246]
[1736067539395,2.3241,215.19,215.15,9.6164752]
[1736067543697,2.3239,215.21,215.17,9.6161752]
[1736067558205,2.3239,215.21,215.17,7.2919752]
[1736067559308,2.3239,215.21,215.17,9.6161752]
[1736067563511,2.3237,215.22,215.18,2.3242]
[1736067564512,2.3237,215.22,215.17,9.6162752]
[1736067567508,2.3237,215.22,215.18,7.2919752]
[1736067571616,2.3237,215.22,215.17,2.3243]
[1736067571816,2.3237,215.22,215.17,9.6162752]
[1736067574121,2.3236,215.23,215.19,7.2919752]
[1736067574315,2.3236,215.23,215.21,7.2919752]
[1736067574617,2.3236,215.23,215.19,7.2919752]
[1736067577923,2.3236,215.23,215.18,2.3242]
[1736067578317,2.3236,215.23,215.19,7.2919752]
[1736067580526,2.3236,215.23,215.18,2.3242]
[1736067580727,2.3236,215.23,215.18,9.6161752]
[1736067580927,7.2919752,215.25,215.18,7.2919752]
[1736067581128,7.2919752,215.23,215.16,48.17219529]
[1736067582428,2.3239,215.21,215.16,48.17219529]
[1736067585629,7.2919752,215.23,215.16,48.17219529]
[1736067585830,2.324,215.2,215.16,48.17219529]
[1736067590232,2.324,215.2,215.16,11.1101752]
[1736067600650,7.2919752,215.23,215.13,2.58]
[1736067600841,10.77876695,215.23,215.15,7.2919752]
[1736067601146,2.3243,215.18,215.15,7.2919752]
[1736067602351,7.2919752,215.23,215.17,7.2919752]
[1736067602949,10.77876695,215.23,215.17,7.2919752]
[1736067603153,7.2919752,215.23,215.17,7.2919752]
[1736067604953,2.324,215.2,215.17,7.2919752]
[1736067606253,7.2919752,215.23,215.17,7.2919752]
[1736067606463,2.3238,215.22,215.17,9.6162752]
[1736067606752,1.4012,215.26,215.17,7.2919752]
[1736067606956,2.3236,215.23,215.17,7.2919752]
[1736067607147,2.3236,215.23,215.18,2.3242]
[1736067607948,3.48674028,215.25,215.17,7.2919752]
[1736067608147,2.3234,215.25,215.2,2.3239]
[1736067608349,2.58,215.26,215.2,2.3239]
[1736067609354,2.3234,215.25,215.2,2.3239]
[1736067609660,9.99877887,215.26,215.19,9.6160752]
[1736067610460,2.3236,215.24,215.19,9.6160752]
[1736067610963,2.3238,215.22,215.18,2.3242]
[1736067611259,7.2919752,215.23,215.17,7.2919752]
[1736067612664,2.3239,215.21,215.17,7.2919752]
[1736067613163,7.2919752,215.23,215.17,7.2919752]
[1736067613363,2.324,215.2,215.17,7.2919752]
[1736067615165,2.3238,215.22,215.17,7.2919752]
[1736067615759,2.3239,215.21,215.17,7.2919752]
[1736067617264,2.3237,215.23,215.19,9.6159752]
[1736067617466,2.58,215.26,215.19,7.2919752]
[1736067617860,12.57365129,215.26,215.19,7.2919752]
[1736067618066,2.3235,215.25,215.2,2.3239]
[1736067619066,2.3235,215.24,215.2,2.3239]
[1736067619972,2.3235,215.24,215.19,7.2919752]
[1736067620170,2.3235,215.24,215.19,9.6159752]
[1736067622174,2.3236,215.23,215.19,9.6159752]
[1736067623872,2.3235,215.24,215.19,9.6159752]
[1736067624372,2.3235,215.24,215.19,7.2919752]
[1736067624571,2.3235,215.24,215.2,2.3239]
[1736067626777,2.3235,215.24,215.2,9.6158752]
[1736067628372,12.3200478,215.26,215.22,7.2919752]
[1736067628578,2.94235971,215.27,215.24,7.2919752]
[1736067630583,2.94235971,215.27,215.24,9.6154752]
[1736067631384,2.94235971,215.27,215.18,7.031]
[1736067631580,5.26555971,215.27,215.23,7.2919752]
[1736067631880,5.26555971,215.27,215.22,2.3236]
[1736067632085,5.26555971,215.27,215.23,7.2919752]
[1736067637385,2.3234,215.25,215.18,7.031]
[1736067637685,7.2919752,215.26,215.2,7.2919752]
[1736067638585,2.3235,215.24,215.2,7.2919752]
[1736067639585,2.94235971,215.27,215.19,2.324]
[1736067639788,7.2919752,215.26,215.19,7.2919752]
[1736067639987,7.2919752,215.26,215.18,1.5013]
[1736067640187,7.2919752,215.24,215.18,1.5013]
[1736067640386,2.324,215.2,215.17,13.45429682]
[1736067641190,2.3239,215.21,215.17,13.45429682]
[1736067645288,2.3239,215.21,215.17,15.77859682]
[1736067646494,2.3239,215.21,215.18,7.2919752]
[1736067651396,9.8719752,215.24,215.18,7.2919752]
[1736067651693,7.2919752,215.22,215.17,6.16232162]
[1736067652289,7.2919752,215.2,215.03,6.46800917]
[1736067652496,7.2919752,215.2,215.14,7.2919752]
[1736067654395,2.3244,215.16,215.14,7.2919752]
[1736067659302,2.3242,215.18,215.14,7.2919752]
[1736067659602,2.3242,215.18,215.16,7.2919752]
[1736067660400,9.8719752,215.24,215.16,7.2919752]
[1736067660702,2.324,215.2,215.16,7.2919752]
[1736067662702,2.3241,215.19,215.16,7.2919752]
[1736067664406,7.2919752,215.23,215.16,7.2919752]
[1736067664606,2.3242,215.18,215.16,7.2919752]
[1736067665699,2.3239,215.21,215.16,7.2919752]
[1736067665900,9.8719752,215.23,215.16,7.2919752]
[1736067667402,2.3243,215.17,215.14,7.2919752]
[1736067667604,7.2919752,215.21,215.14,7.2919752]
[1736067668002,2.3245,215.16,215.14,7.2919752]
[1736067670406,2.3245,215.15,215.14,7.2919752]
[1736067671109,2.3245,215.15,215.12,7.2919752]
[1736067671303,2.325,215.1,215.05,2.3255]
[1736067671507,2.325,215.1,215.08,7.2919752]
[1736067674007,2.58,215.13,215.08,7.2919752]
[1736067674207,2.3251,215.09,215.08,7.2919752]
[1736067676110,2.3251,215.09,215.04,2.3257]
[1736067676309,2.3251,215.09,215.07,7.2919752]
[1736067680319,2.325,215.1,215.07,7.2919752]
[1736067680618,2.325,215.1,215.09,7.2919752]
[1736067693028,2.325,215.1,215.09,7.2919752]
[1736067697837,2.325,215.1,215.06,2.3255]
[1736067698034,2.325,215.1,215.07,7.2919752]
[1736067698332,2.325,215.1,215.02,2.58]
[1736067698333,12.35447739,215.14,215.02,2.58]
[1736067698538,2.3252,215.09,215.06,7.2919752]
[1736067698934,7.2919752,215.12,215.06,7.2919752]
[1736067699134,2.3253,215.08,215.06,7.2919752]
[1736067699534,7.2919752,215.12,215.06,7.2919752]
[1736067699740,2.3255,215.06,215.04,7.2919752]
[1736067699940,7.2919752,215.12,215.04,7.2919752]
[1736067700337,2.3251,215.1,215.04,7.2919752]
[1736067700531,7.2919752,215.12,215.04,7.2919752]
[1736067701430,2.3253,215.08,215.04,7.2919752]
[1736067701631,7.2919752,215.12,215.06,7.2919752]
[1736067702139,2.3252,215.09,215.06,7.2919752]
[1736067704436,2.3253,215.08,215.06,7.2919752]
[1736067704939,2.3253,215.08,215.0,4.349]
[1736067705147,2.3253,215.08,215.05,7.2919752]
[1736067708345,2.325,215.1,215.05,9.6175752]
[1736067708547,7.2919752,215.13,215.05,7.2919752]
[1736067709446,2.3252,215.09,215.05,7.2919752]
[1736067710047,2.3252,215.09,215.07,7.2919752]
[1736067710243,2.3252,215.08,215.07,7.2919752]
[1736067712546,2.3252,215.08,215.03,2.3257]
[1736067712851,2.3252,215.08,215.05,7.2919752]
[1736067713245,10.78062297,215.13,215.05,7.2919752]
[1736067713549,2.3254,215.07,215.05,7.2919752]
[1736067720854,2.3251,215.1,215.05,7.2919752]
[1736067721055,7.2919752,215.11,215.05,7.2919752]
[1736067721553,2.3251,215.1,215.05,7.2919752]
[1736067721758,7.2919752,215.11,215.05,7.2919752]
[1736067722255,7.2919752,215.11,215.04,7.2919752]
[1736067722458,7.2919752,215.11,215.01,2.326]
[1736067722656,7.2919752,215.11,215.03,7.2919752]
[1736067724054,2.3254,215.07,215.03,7.2919752]
[1736067728160,2.3254,215.07,215.02,2.3259]
[1736067728362,2.3254,215.07,215.03,7.2919752]
[1736067731759,4.9052,215.09,215.05,7.2919752]
[1736067732158,4.9052,215.09,215.0,6.929]
[1736067732361,2.3253,215.08,215.05,7.2919752]
[1736067732564,2.58,215.09,215.05,7.2919752]
[1736067733165,2.325,215.1,215.05,9.6175752]
[1736067740966,2.3251,215.09,215.05,7.2919752]
[1736067744470,2.3253,215.08,215.03,7.2919752]
[1736067747670,2.3254,215.07,215.03,7.2919752]
[1736067748368,7.2919752,215.11,215.03,7.2919752]
[1736067748572,2.3255,215.06,215.03,7.2919752]
[1736067750470,2.3254,215.07,215.03,7.2919752]
[1736067753270,2.3255,215.06,215.03,7.2919752]
[1736067767883,2.3255,215.06,215.01,2.326]
[1736067768186,2.3255,215.06,215.02,7.2919752]
[1736067771380,2.3255,215.06,215.01,7.38992414]
[1736067771583,2.3255,215.06,215.01,14.68189934]
[1736067773486,2.58,215.09,214.86,160.24435945]
[1736067773487,7.2919752,215.03,214.86,160.24435945]
[1736067773685,7.2919752,214.99,214.93,7.2919752]
[1736067774386,2.3264,214.97,214.93,7.2919752]
[1736067775885,7.2919752,214.99,214.93,7.2919752]
[1736067776087,2.3263,214.98,214.93,7.2919752]
[1736067776787,2.3265,214.97,214.93,7.2919752]
[1736067777987,2.3263,214.99,214.95,7.2919752]
[1736067778392,7.2919752,214.99,214.89,2.58]
[1736067778588,2.3267,214.95,214.91,7.2919752]
[1736067780185,7.2919752,214.97,214.91,7.2919752]
[1736067780387,2.327,214.92,214.88,11.1028752]
[1736067782195,7.2919752,214.95,214.88,11.1028752]
[1736067783490,9.6188752,214.93,214.88,11.1028752]
[1736067783689,9.6188752,214.93,214.88,9.6193752]
[1736067786590,7.2919752,214.93,214.88,7.2919752]
[1736067786791,2.3271,214.91,214.87,2.3275]
[1736067786999,7.2919752,214.91,214.85,5.06679036]
[1736067787195,7.2919752,214.89,214.85,5.06679036]
[1736067787396,9.6192752,214.89,214.85,5.06679036]
[1736067787593,7.2919752,214.93,214.85,12.35876556]
[1736067787989,9.6188752,214.93,214.88,2.3274]
[1736067788193,9.6188752,214.93,214.86,2.58]
[1736067788397,9.6188752,214.93,214.86,4.0522]
[1736067788692,9.6188752,214.93,214.88,2.3274]
[1736067789088,7.2919752,214.93,214.88,2.3274]
[1736067789295,7.2919752,214.96,214.92,2.327]
[1736067789597,54.01555078,214.97,214.92,2.327]
[1736067791302,54.01555078,214.97,214.91,9.6190752]
[1736067791902,9.6185752,214.96,214.91,2.3271]
[1736067793002,9.6185752,214.96,214.89,7.2919752]
[1736067793200,9.6185752,214.96,214.89,9.6191752]
[1736067793695,2.3267,214.95,214.89,9.6191752]
[1736067795601,2.3268,214.94,214.89,9.6191752]
[1736067796309,2.3267,214.95,214.9,2.3272]
[1736067798211,2.3269,214.94,214.89,9.6192752]
[1736067800314,2.327,214.92,214.87,12.5555752]
[1736067800609,7.2919752,214.92,214.87,2.3275]
[1736067801010,7.2919752,214.92,214.86,1.4722]
[1736067801808,7.2919752,214.92,214.86,4.0522]
[1736067802314,2.3272,214.9,214.86,1.4722]
[1736067802517,7.2919752,214.9,214.86,1.4722]
[1736067802712,7.2919752,214.9,214.85,5.06679036]
[1736067803214,2.3275,214.87,214.85,5.06679036]
[1736067805809,2.3274,214.89,214.85,5.06679036]
[1736067806015,7.2919752,214.9,214.85,5.06679036]
[1736067806513,2.3274,214.88,214.85,5.06679036]
[1736067810821,7.2919752,214.9,214.85,5.06679036]
[1736067811117,7.2919752,214.88,214.82,12.2000752]
[1736067811810,7.2919752,214.88,214.82,9.6200752]
[1736067812314,7.2919752,214.88,214.82,2.3281]
[1736067812515,2.3276,214.86,214.82,2.3281]
[1736067812815,7.2919752,214.88,214.8,9.8719752]
[1736067813116,9.6194752,214.88,214.83,2.3279]
[1736067821024,3.49199104,214.96,214.84,7.2919752]
[1736067821226,7.2919752,214.93,214.86,7.2919752]
[1736067821526,7.2919752,214.93,214.86,9.8719752]
[1736067822325,7.2919752,214.93,214.88,2.3274]
[1736067822522,7.2919752,214.93,214.86,2.58]
[1736067822727,7.2919752,214.91,214.86,2.58]
[1736067823427,7.2919752,214.91,214.86,4.9076]
[1736067824428,9.6190752,214.91,214.86,2.58]
[1736067825725,2.3272,214.9,214.86,2.58]
[1736067827238,7.2919752,214.89,214.85,2.3277]
[1736067830839,9.6193752,214.89,214.85,2.3277]
[1736067831033,7.2919752,214.95,214.9,2.3271]
[1736067831230,7.2919752,214.95,214.88,7.2919752]
[1736067831437,7.2919752,214.95,214.86,12.47604241]
[1736067832440,2.3269,214.93,214.86,12.47604241]
[1736067832936,2.3269,214.93,214.88,2.3273]
[1736067836437,2.3269,214.93,214.89,2.3273]
[1736067847462,7.2919752,214.95,214.91,2.3271]
[1736067854969,9.6186752,214.95,214.91,2.3271]
[1736067858264,9.6186752,214.95,214.89,2.58]
[1736067858265,51.68905078,214.97,214.9,7.2919752]
[1736067858668,54.01555078,214.97,214.93,2.3269]
[1736067858868,51.68905078,214.97,214.9,7.2919752]
[1736067860463,2.3266,214.96,214.92,2.3269]
[1736067861273,2.3267,214.95,214.9,2.3271]
[1736067865464,2.3268,214.94,214.9,2.3271]
[1736067866068,2.3269,214.93,214.89,4.9073]
[1736067866464,7.2919752,214.94,214.89,2.58]
[1736067866973,7.2919752,214.94,214.88,9.8719752]
[1736067867472,2.327,214.92,214.88,12.1993752]
[1736067871976,2.327,214.92,214.89,2.3273]
[1736067874575,2.327,214.92,214.88,9.8719752]
[1736067874774,2.327,214.92,214.88,12.1993752]
[1736067876478,7.2919752,214.94,214.88,2.58]
[1736067876776,2.3271,214.91,214.88,2.58]
[1736067877369,7.2919752,214.9,214.86,5.18406721]
[1736067877774,2.3274,214.88,214.84,4.9077]
[1736067878379,2.3278,214.85,214.8,1.4955]
[1736067878577,7.2919752,214.86,214.79,6.3388]
[1736067878976,7.2919752,214.86,214.79,3.7588]
[1736067878977,2.3279,214.84,214.79,3.7588]
[1736067880779,7.2919752,214.86,214.79,3.7588]
[1736067881079,2.3277,214.85,214.79,3.7588]
[1736067881280,7.2919752,214.84,214.79,3.7588]
[1736067882278,7.2919752,214.84,214.8,2.3283]
[1736067893989,7.2919752,214.84,214.78,7.2919752]
[1736067894191,7.2919752,214.84,214.81,2.3282]
[1736067894893,2.3277,214.85,214.81,2.3282]
[1736067898397,7.2919752,214.84,214.81,2.3282]
[1736067899803,7.2919752,214.84,214.78,7.2919752]
[1736067900004,7.2919752,214.84,214.8,2.3283]
[1736067900199,7.2919752,214.84,214.78,7.2919752]
[1736067900404,2.328,214.83,214.78,2.3284]
[1736067901506,2.328,214.83,214.79,2.3284]
[1736067902402,9.6200752,214.82,214.77,2.3286]
[1736067902705,9.6200752,214.82,214.75,9.8719752]
[1736067903309,7.2919752,214.76,214.66,6.46800917]
[1736067903499,7.2919752,214.74,214.67,7.2919752]
[1736067903704,7.2919752,214.76,214.69,7.2919752]
[1736067904099,9.6207752,214.76,214.65,25.87203669]
[1736067904301,7.2919752,214.76,214.68,7.2919752]
[1736067904502,7.2919752,214.81,214.72,7.2919752]
[1736067904708,7.2919752,214.81,214.74,7.2919752]
[1736067905012,7.2919752,214.81,214.75,2.3288]
[1736067905509,7.2919752,214.79,214.75,2.3288]
[1736067906105,7.2919752,214.79,214.74,2.3289]
[1736067907200,7.2919752,214.79,214.75,2.3288]
[1736067907812,2.3283,214.8,214.75,2.3288]
[1736067908014,7.2919752,214.79,214.75,2.3288]
[1736067909213,4.9083,214.8,214.75,2.3288]
[1736067909413,7.2919752,214.79,214.75,2.3288]
[1736067912817,7.2919752,214.79,214.71,7.2919752]